fUSD/lending_fUSD_20240317
["ID","MTS","AMOUNT","RATE_DAILY","PERIOD"]
[319363741,1710705033870,-200.0,0.00013888,2]
[319363742,1710705033881,-199.24594936,0.00013888,2]
[319363767,1710705038421,-250.0,0.00013699,2]
[319363768,1710705038432,-3458.86895064,0.00013888,2]
[319363769,1710705038442,-2425.3774,0.00013888,2]
[319363770,1710705038452,-8697.192,0.00013888,2]
[319363771,1710705038461,-200.0,0.00013888,2]
[319363772,1710705038471,-200.0,0.00013888,2]
[319363773,1710705038480,-800.0,0.00013888,2]
[319363774,1710705038491,-800.0,0.00013888,2]
[319363775,1710705038500,-200.0,0.00013888,2]
[319363776,1710705038509,-200.0,0.00013888,2]
[319363777,1710705038519,-200.0,0.00013888,2]
[319363778,1710705038528,-200.0,0.00013888,2]
[319363779,1710705038538,-200.0,0.00013888,2]
[319363780,1710705038547,-200.0,0.00013888,2]
[319363781,1710705038556,-500.0,0.00013888,2]
[319363782,1710705038566,-500.0,0.00013888,2]
[319363783,1710705038576,-200.0,0.00013888,2]
[319363784,1710705038586,-200.0,0.00013888,2]
[319363785,1710705038596,-173.10505174,0.0001389,2]
[319363786,1710705038605,-800.0,0.00013903,2]
[319363787,1710705038614,-500.0,0.0001393,2]
[319363788,1710705038627,-500.3366,0.0001393,2]
[319363790,1710705038637,-376.7627,0.0001393,2]
[319363791,1710705038646,-260.49,0.00013973,2]
[319363793,1710705038656,-597.03,0.00013978,3]
[319363795,1710705038667,-403.29782879,0.00013988,2]
[319363797,1710705038676,-155.0,0.00013988,2]
[319363799,1710705038685,-637.2152013,0.00013988,2]
[319363801,1710705038694,-155.0,0.00013988,2]
[319363803,1710705038703,-509.12234052,0.00013988,2]
[319363805,1710705038712,-10950.8668049,0.00013988,2]
[319363807,1710705038722,-155.0,0.00013988,2]
[319363809,1710705038732,-1235.34375995,0.00013988,2]
[319363812,1710705038741,-357.96365984,0.00013988,2]
[319363814,1710705038751,-710.07971817,0.00013988,2]
[319363816,1710705038761,-770.804532,0.00013988,2]
[319363818,1710705038770,-500.0,0.00013988,2]
[319363820,1710705038779,-261.86121602,0.00013988,2]
[319363822,1710705038789,-157.72085057,0.00013988,2]
[319363824,1710705038798,-500.0,0.00013988,2]
[319363826,1710705038808,-446.33033534,0.00013988,2]
[319363828,1710705038817,-155.0,0.00013988,2]
[319363830,1710705038826,-155.00062197,0.00013988,2]
[319363831,1710705038835,-258.43041082,0.00013988,2]
[319363832,1710705038845,-788.03438444,0.00013988,2]
[319363833,1710705038854,-166.31571187,0.00013988,2]
[319363834,1710705038864,-1238.09469289,0.00013988,2]
[319363835,1710705038873,-3988.8084967,0.00013988,2]
[319363836,1710705038883,-1264.24984332,0.00013989,2]
[319363837,1710705038892,-1178.3325,0.00013989,2]
[319363838,1710705038901,-1507.2855621,0.0001399,2]
[319363839,1710705038910,-10069.1408337,0.0001399,2]
[319363840,1710705038919,-163169.81785065,0.0001399,2]
[319363842,1710705038931,-2597.53058895,0.0001399,2]
[319363844,1710705038942,-11538.3695762,0.0001399,2]
[319363846,1710705038952,-11909.48122651,0.0001399,2]
[319363848,1710705038961,-2146.79117912,0.00013998,2]
[319363850,1710705038971,-2489.34265021,0.00013998,2]
[319363852,1710705038980,-198.72663122,0.00013998,2]
[319363854,1710705038991,-183.60704504,0.00013998,2]
[319363856,1710705039001,-825.07521854,0.00013999,2]
[319363858,1710705039010,-779.81352552,0.00013999,2]
[319363860,1710705039019,-999.70654068,0.00013999,2]
[319363862,1710705039029,-34552.64217904,0.00013999,2]
[319363864,1710705039039,-326.57514523,0.00013999,5]
[319363867,1710705039049,-326.57514523,0.00013999,5]
[319363868,1710705039059,-326.57514523,0.00013999,5]
[319363871,1710705039068,-326.57514523,0.00013999,5]
[319363873,1710705039078,-326.57514523,0.00013999,5]
[319363874,1710705039087,-326.57514524,0.00013999,5]
[319363877,1710705039097,-326.57514523,0.00013999,5]
[319363879,1710705039107,-326.57514523,0.00013999,5]
[319363881,1710705039116,-326.57514523,0.00013999,5]
[319363883,1710705039125,-326.57514523,0.00013999,5]
[319363885,1710705039135,-997025.82244033,0.00014,2]
[319363924,1710705040343,-691.84948328,0.00014,2]
[319363925,1710705040730,-3075.80179965,0.00014,2]
[319363949,1710705043333,-6795.63814244,0.00014,2]
[319363951,1710705043344,-3122.01629618,0.00014,2]
[319363953,1710705043355,-3822.40829599,0.00014,2]
[319363961,1710705043420,-9170.53380632,0.00014,2]
[319363964,1710705043431,-41162.87813718,0.00014,2]
[319363966,1710705043442,-1098731.19889546,0.00014,2]
[319363968,1710705043452,-11327.93828767,0.00014,2]
[319363970,1710705043461,-150.0,0.00014,2]
[319363972,1710705043470,-7162.20189875,0.00014,2]
[319363974,1710705043481,-346.78,0.00014,2]
[319363976,1710705043490,-346.78,0.00014,2]
[319363978,1710705043500,-248.48,0.00014,2]
[319363980,1710705043509,-3000.0,0.00014,2]
[319363981,1710705043518,-197.7,0.00014018,2]
[319363983,1710705043528,-178.27,0.00014085,2]
[319363985,1710705043537,-200.0,0.00014093,2]
[319363987,1710705043546,-408.41,0.00014102,2]
[319363989,1710705043555,-408.41,0.00014102,2]
[319363991,1710705043564,-408.41,0.00014102,2]
[319363993,1710705043574,-260.49,0.0001411,2]
[319363995,1710705043583,-516.7,0.00014199,2]
[319363997,1710705043592,-414.91,0.00014199,2]
[319363999,1710705043601,-150.0,0.00014199,2]
[319364001,1710705043610,-260.49,0.00014247,2]
[319364003,1710705043620,-1000.0,0.00014261,2]
[319364005,1710705043629,-1391.2102795,0.00014294,2]
[319364007,1710705043638,-260.49,0.00014384,2]
[319364009,1710705043648,-150.0,0.000144,2]
[319364011,1710705043659,-1000.0,0.000145,2]
[319364013,1710705043668,-1000.0,0.000145,2]
[319364015,1710705043678,-1000.0,0.000145,2]
[319364017,1710705043687,-1000.0,0.000145,2]
[319364019,1710705043698,-1000.0,0.000145,3]
[319364021,1710705043707,-260.49,0.00014521,2]
[319364022,1710705043716,-355.61,0.00014633,2]
[319364023,1710705043725,-519.14,0.00014658,2]
[319364024,1710705043735,-150.0,0.00014948,2]
[319364025,1710705043745,-155.0,0.00015,2]
[319364026,1710705043754,-2818.18472857,0.00015,2]
[319364027,1710705043765,-10429.72018833,0.00015,2]
[319364028,1710705043774,-19368.35751359,0.00015,2]
[319364029,1710705043783,-155.0,0.00015,2]
[319364030,1710705043793,-5000.0,0.00015,2]
[319364031,1710705043802,-419720.2351719,0.00015,2]
[319364032,1710705043812,-12473.34436896,0.00015,2]
[319364033,1710705043821,-155.0,0.00015,2]
[319364034,1710705043831,-439.46,0.00015,2]
[319364035,1710705043840,-222229.60544027,0.00015,2]
[319364036,1710705044184,-701.14973018,0.00015,2]
[319364037,1710705044196,-403.22850324,0.00015,2]
[319364038,1710705044207,-2353.98140974,0.00015,2]
[319364046,1710705046412,-5504.19849091,0.00013999,2]
[319364047,1710705046421,-1762.73028619,0.00013999,2]
[319364048,1710705046431,-30583.07122282,0.00015,2]
[319364049,1710705046517,-1125.387,0.00015,2]
[319364050,1710705046531,-9097.88685779,0.00015,2]
[319364051,1710705046543,-20960.04019914,0.00015,2]
[319364052,1710705046565,-287.8145,0.00015,2]
[319364053,1710705046577,-5000.0,0.00015,2]
[319364054,1710705046589,-13605.44890254,0.00015,2]
[319364055,1710705046604,-1056.04737643,0.00015,2]
[319364056,1710705046640,-16828.84278689,0.00015,2]
[319364057,1710705046651,-5114.97780404,0.00015,2]
[319364058,1710705046674,-729565.67757223,0.00015,2]
[319364059,1710705046685,-566.0755626,0.00015,2]
[319364060,1710705046696,-46935.21891953,0.00015,2]
[319364061,1710705068363,1762.73028619,0.00011249,2]
[319364062,1710705090362,224.0,0.00010499,2]
[319364063,1710705090385,331.99933774,0.00010499,2]
[319364067,1710705258067,173.25806196,0.00012,30]
[319364073,1710705388856,5486.4166203,0.000231,120]
[319364074,1710705388884,55250.23,0.000231,120]
[319364075,1710705388910,297049.14346346,0.000231,120]
[319364076,1710705388935,562755.20991624,0.000231,120]
[319364077,1710705507620,565.29,0.00011217,2]
[319364078,1710705515424,351.0007704,0.00010499,2]
[319364079,1710705543905,24534.47613259,0.00010499,2]
[319364080,1710705561920,8409.4672703,0.00010499,2]
[319364081,1710705569718,178.86486959,0.00011198,2]
[319364082,1710705972996,576.33,0.00010747,2]
[319364105,1710706231572,-446.68901374,0.0001212,2]
[319364106,1710706231584,-500.0,0.0001212,2]
[319364107,1710706231593,-25.55382798,0.00012121,2]
[319364108,1710706231606,-347.56479375,0.00012121,2]
[319364109,1710706231619,-864.97607116,0.00012121,2]
[319364110,1710706231628,-261.86121602,0.00012122,2]
[319364111,1710706231638,-710.3202368,0.00012122,2]
[319364112,1710706231648,-2593.97428217,0.0001213,2]
[319364113,1710706231660,-280.56667432,0.0001213,2]
[319364114,1710706231682,-1819.50939116,0.0001213,2]
[319364115,1710706231691,-154.55053798,0.00012132,2]
[319364116,1710706231700,-20.96683247,0.00012233,2]
[319364117,1710706231711,-139.5600671,0.00012233,2]
[319364118,1710706231721,-414.58,0.00012331,2]
[319364119,1710706231731,-918.8299329,0.00012331,2]
[319364120,1710706231742,-495.2200671,0.00012331,2]
[319364121,1710706231751,-923.94,0.00012446,2]
[319364122,1710706231761,-250.0,0.00012487,2]
[319364123,1710706231770,-353.77799444,0.00012518,2]
[319364124,1710706231789,-646.22200556,0.00012518,2]
[319364125,1710706231798,-150.0,0.00012572,2]
[319364126,1710706231807,-7666.84040226,0.00012573,2]
[319364127,1710706231818,-798.16542678,0.00012573,2]
[319364128,1710706231842,-6541.10183312,0.00012573,2]
[319364129,1710706231857,-268.18233784,0.00012573,2]
[319364130,1710706231866,-167.48,0.00012673,2]
[319364131,1710706231875,-3.79144114,0.00012759,2]
[319364132,1710706231887,-162.59855886,0.00012759,2]
[319364133,1710706231896,-341.04,0.0001277,2]
[319364134,1710706231905,-869.63144114,0.00012918,2]
[319364135,1710706231917,-8920.42377856,0.00012918,2]
[319364136,1710706231928,-701.97623022,0.00012918,2]
[319364137,1710706231971,-818.26057678,0.00012918,2]
[319364138,1710706231986,-485.80288671,0.00012918,2]
[319364139,1710706231997,-667.31996207,0.00012918,2]
[319364141,1710706232009,-3759.34966549,0.00012918,2]
[319364143,1710706232024,-1828.24360889,0.00012918,2]
[319364146,1710706232036,-1948.98185014,0.00012918,2]
[319364147,1710706232045,-1501.06814986,0.00012918,2]
[319364196,1710706237636,-15036.31123691,0.00012918,2]
[319364212,1710706237705,-686.3954584,0.00012918,2]
[319364215,1710706237716,-594.18515483,0.00012918,2]
[319364218,1710706237726,-4839.67,0.00012943,2]
[319364220,1710706237739,-576.33,0.0001301,2]
[319364222,1710706237748,-226.45,0.00013137,2]
[319364224,1710706237757,-1876.0,0.00013447,2]
[319364226,1710706237766,-167.48,0.0001356,2]
[319364228,1710706237776,-499.99,0.00013698,2]
[319364230,1710706237785,-1172.63,0.00013699,2]
[319364232,1710706237795,-194.5,0.00013699,2]
[319364234,1710706237804,-2751.0,0.00013699,2]
[319364236,1710706237813,-10000.0,0.00013699,2]
[319364238,1710706237823,-539.75,0.00013699,2]
[319364240,1710706237832,-500.0,0.00013699,2]
[319364241,1710706237842,-250.0,0.00013699,2]
[319364242,1710706237851,-2572.22,0.00013699,2]
[319364243,1710706237860,-250.0,0.00013699,2]
[319364244,1710706237870,-150.99,0.00013787,2]
[319364245,1710706237880,-2054.0341,0.00013788,2]
[319364246,1710706237889,-2716.7572,0.00013788,2]
[319364248,1710706237898,-718.8533,0.00013788,2]
[319364249,1710706237908,-5379.9805,0.000138,2]
[319364250,1710706237917,-442.196,0.000138,2]
[319364251,1710706237926,-5150.0,0.000138,2]
[319364252,1710706237936,-504.3498,0.000138,2]
[319364253,1710706237945,-524.6597,0.000138,2]
[319364254,1710706237955,-482.57753435,0.000138,2]
[319364255,1710706237965,-482.57753434,0.00013814,2]
[319364256,1710706237977,-482.57753434,0.00013829,2]
[319364257,1710706237992,-210.0,0.00013829,2]
[319364258,1710706238000,-482.57753434,0.00013843,2]
[319364259,1710706238010,-482.57753434,0.00013857,2]
[319364260,1710706238019,-482.57753434,0.00013871,2]
[319364261,1710706238029,-482.57753434,0.00013886,2]
[319364262,1710706238038,-505.01630497,0.00013888,2]
[319364263,1710706238047,-1274.41909867,0.00013888,2]
[319364264,1710706238057,-200.0,0.00013888,2]
[319364265,1710706238066,-199.0,0.0001389,3]
[319364266,1710706238076,-597.02,0.0001389,3]
[319364267,1710706238085,-5332.3288,0.000139,2]
[319364268,1710706238094,-6172.9296,0.000139,2]
[319364269,1710706238104,-196871.2537,0.000139,2]
[319364270,1710706238114,-907.39178848,0.000139,2]
[319364271,1710706238123,-154.55053797,0.000139,2]
[319364272,1710706238132,-482.57753434,0.000139,2]
[319364273,1710706238143,-153.96,0.00013955,2]
[319364274,1710706238153,-35190.26131915,0.0001399,2]
[319364275,1710706238163,-206.10677387,0.00013998,2]
[319364276,1710706238173,-509.29629272,0.00013998,2]
[319364277,1710706238182,-34552.64217904,0.00013998,2]
[319364278,1710706238192,-999.70654068,0.00013998,2]
[319364279,1710706238201,-779.81352552,0.00013998,2]
[319364280,1710706238210,-183.60704504,0.00013998,2]
[319364281,1710706238219,-3913.47007315,0.00013998,2]
[319364282,1710706238229,-198.72663122,0.00013998,2]
[319364283,1710706238240,-2489.34265021,0.00013998,2]
[319364284,1710706238249,-258.84047111,0.00013998,2]
[319364285,1710706238259,-2146.79117912,0.00013998,2]
[319364286,1710706238268,-171.97278319,0.00013998,2]
[319364287,1710706238278,-190.56209382,0.00013998,2]
[319364288,1710706238288,-400.0,0.00013998,2]
[319364289,1710706238297,-174.07301397,0.00013998,2]
[319364290,1710706238306,-484.03196119,0.00013998,2]
[319364291,1710706238315,-2162.89736187,0.00013998,2]
[319364292,1710706238325,-2071.7102928,0.00013998,2]
[319364293,1710706238334,-164.87044309,0.00013998,2]
[319364294,1710706238344,-155.0,0.00013998,2]
[319364295,1710706238353,-156.30363875,0.00013998,2]
[319364296,1710706238363,-5350.53346211,0.00013998,2]
[319364297,1710706238372,-294.29767343,0.00013998,2]
[319364298,1710706238382,-269.88806193,0.00013998,2]
[319364299,1710706238391,-83879.25639158,0.00013998,2]
[319364300,1710706238400,-2000.0,0.00013999,2]
[319364301,1710706238409,-301.19072657,0.00013999,5]
[319364302,1710706238418,-326.57514523,0.00013999,5]
[319364303,1710706238427,-326.57514523,0.00013999,5]
[319364304,1710706238436,-326.57514523,0.00013999,5]
[319364305,1710706238445,-326.57514523,0.00013999,5]
[319364306,1710706238454,-326.57514524,0.00013999,5]
[319364307,1710706238463,-326.57514523,0.00013999,5]
[319364308,1710706238473,-326.57514523,0.00013999,5]
[319364309,1710706238484,-326.57514523,0.00013999,5]
[319364310,1710706238493,-326.57514523,0.00013999,5]
[319364311,1710706238502,-326.57514523,0.00013999,5]
[319364312,1710706238511,-360.18194973,0.00013999,5]
[319364313,1710706238520,-352.45184232,0.00013999,5]
[319364314,1710706238530,-352.45184232,0.00013999,5]
[319364315,1710706238539,-352.45184231,0.00013999,5]
[319364316,1710706238548,-300.0,0.00013999,2]
[319364317,1710706238558,-300.0,0.00013999,2]
[319364318,1710706238567,-304.09985761,0.00013999,2]
[319364319,1710706238576,-10000.0,0.00013999,2]
[319364320,1710706238585,-500.0,0.00013999,2]
[319364321,1710706238594,-300.0,0.00013999,2]
[319364322,1710706238603,-32863376.82833562,0.00014,2]
[319364323,1710706238973,-18695842.7992599,0.00014,2]
[319364324,1710706238990,-1065915.12966472,0.00014,2]
[319364325,1710706239012,-1050.31800759,0.00014,2]
[319364326,1710706239023,-771.26757877,0.00014,2]
[319364328,1710706239546,-334.87883449,0.00014,2]
[319364329,1710706239606,-365.59500001,0.00014,2]
[319364330,1710706239775,-556943.99999997,0.00014,2]
[319364344,1710706242554,-933.0560867,0.00014,2]
[319364347,1710706242566,-464053.81181085,0.00014,2]
[319364351,1710706242577,-185931.88183607,0.00014,2]
[319364367,1710706242672,-5208.1713167,0.00014,2]
[319364370,1710706242683,-1491.5,0.00014,2]
[319364373,1710706242695,-1391.74,0.00014,2]
[319364375,1710706242706,-91005.93801196,0.00014,2]
[319364378,1710706242718,-18285.5,0.00014,2]
[319364380,1710706242735,-1245.01926058,0.00014,2]
[319364381,1710706242746,-420647.79248382,0.00014,2]
[319364382,1710706243208,-16.46720039,0.00014,2]
[319364383,1710706243248,-1227.33,0.00014,2]
[319364384,1710706245554,-398.68286342,0.00013999,2]
[319364385,1710706245566,-101.31713658,0.00013999,2]
[319364386,1710706245576,-398.68286342,0.00014,2]
[319364387,1710706245587,-9309.10477623,0.00014,2]
[319364388,1710706245611,-478.43893584,0.00014,2]
[319364389,1710706245622,-489.61888629,0.00014,2]
[319364390,1710706245634,-13790.00000001,0.00014,2]
[319364391,1710706245650,-5570.45453968,0.00014,2]
[319364392,1710706245678,-347.44581063,0.00014,2]
[319364393,1710706245738,-1777.3118188,0.00014,2]
[319364394,1710706245751,-5140.71856567,0.00014,2]
[319364395,1710706245764,-19181.0,0.00014,2]
[319364396,1710706245805,-53707.51828959,0.00014,2]
[319364397,1710706245860,-6003.90762285,0.00014,2]
[319364398,1710706245872,-865.0072943,0.00014,2]
[319364399,1710706245886,-1422.89907638,0.00014,2]
[319364400,1710706245917,-518.15027836,0.00014,2]
[319364401,1710706274091,5000.0,0.0001,3]
[319364402,1710706293702,5000.0,0.000118,4]
[319364403,1710706406309,-537.85,0.0001191,2]
[319364404,1710706406331,-3001.7023,0.00012028,2]
[319364405,1710706406352,-1238.09469289,0.00013698,2]
[319364406,1710706406373,-261.86121602,0.00013698,2]
[319364407,1710706406395,-194.5,0.00013699,2]
[319364408,1710706406415,-500.0,0.00013728,3]
[319364409,1710706406436,-150.0,0.00013997,2]
[319364410,1710706406458,-4511.2037334,0.00013998,2]
[319364411,1710706406479,-243.46609856,0.00013999,2]
[319364412,1710706406499,-2162.89736187,0.00013999,2]
[319364413,1710706406519,-446.33033534,0.00013999,2]
[319364414,1710706406540,-15856052.95787257,0.00014,2]
[319364415,1710706406560,-11327.93828767,0.00014,2]
[319364416,1710706406580,-12169838.88956084,0.00014,2]
[319364417,1710706406599,-10571.56472586,0.00014,5]
[319364418,1710706406619,-10571.56472586,0.00014,5]
[319364419,1710706406639,-10571.56472586,0.00014,5]
[319364420,1710706406659,-10571.56472586,0.00014,5]
[319364421,1710706406679,-10571.56472586,0.00014,5]
[319364422,1710706406699,-10571.56472586,0.00014,5]
[319364423,1710706406719,-10571.56472586,0.00014,5]
[319364424,1710706406738,-10571.56472586,0.00014,5]
[319364425,1710706406758,-10571.56472586,0.00014,5]
[319364426,1710706406778,-10571.56372586,0.00014,5]
[319364427,1710706406803,-189.16,0.00014015,2]
[319364428,1710706406826,-1000.0,0.00014083,2]
[319364429,1710706406847,-537.85,0.00014174,2]
[319364430,1710706406869,-200.0,0.00014219,2]
[319364431,1710706406890,-500.0,0.00014219,2]
[319364432,1710706406911,-200.0,0.00014219,2]
[319364433,1710706406931,-592.556228,0.00014247,2]
[319364434,1710706406954,-499.99,0.00014247,2]
[319364435,1710706406973,-3323.34,0.00014247,2]
[319364436,1710706406992,-3140.48675472,0.00014273,3]
[319364437,1710706407013,-827.57,0.000143,2]
[319364438,1710706407037,-341.04,0.00014367,2]
[319364439,1710706407057,-200.0,0.00014384,2]
[319364440,1710706407076,-800.0,0.00014384,2]
[319364441,1710706407096,-1038168.80931672,0.00014775,2]
[319364442,1710706407119,-226.45,0.00014779,2]
[319364443,1710706407140,-1000.0,0.000148,2]
[319364444,1710706407161,-159.89427707,0.00014849,2]
[319364445,1710706407181,-3000.0,0.0001485,2]
[319364446,1710706407203,-200.0,0.00014879,2]
[319364447,1710706407223,-800.0,0.00014879,2]
[319364448,1710706407243,-1000.0,0.000149,2]
[319364449,1710706407264,-1000.0,0.000149,2]
[319364450,1710706407285,-1000.0,0.000149,2]
[319364451,1710706407306,-1258.0,0.000149,2]
[319364452,1710706407327,-1000.0,0.000149,2]
[319364453,1710706407347,-1000.0,0.000149,2]
[319364454,1710706407368,-1000.0,0.000149,2]
[319364455,1710706407390,-1000.0,0.000149,2]
[319364456,1710706407410,-1000.0,0.000149,2]
[319364457,1710706407431,-1000.0,0.000149,2]
[319364458,1710706407451,-6910.2571447,0.0001499,2]
[319364459,1710706407472,-2253.57344056,0.00014998,2]
[319364460,1710706407494,-5002.53230386,0.00014999,2]
[319364461,1710706407516,-300.02,0.00014999,2]
[319364462,1710706407538,-300.0,0.00014999,2]
[319364463,1710706407561,-3062190.5734374,0.00015,2]
[319364464,1710706407584,-98665.87027552,0.00015,2]
[319364465,1710706407606,-91636.27551573,0.00015,2]
[319364466,1710706407627,-1000.0,0.00015,2]
[319364467,1710706407648,-1000.0,0.00015,2]
[319364468,1710706407668,-1000.0,0.00015,2]
[319364469,1710706407689,-1000.0,0.00015,2]
[319364470,1710706407710,-1000.0,0.00015,2]
[319364471,1710706407730,-1365.98281494,0.00015,2]
[319364472,1710706407750,-4431.0,0.00015,2]
[319364473,1710706407771,-200.0,0.00015,2]
[319364474,1710706407792,-10429.72018833,0.00015,2]
[319364475,1710706407813,-155.0,0.00015,2]
[319364476,1710706407834,-5000.0,0.00015,2]
[319364477,1710706407855,-155.0,0.00015,2]
[319364478,1710706407875,-12473.34436896,0.00015,2]
[319364479,1710706407896,-19368.35751359,0.00015,2]
[319364480,1710706407916,-3968.55965813,0.00015,2]
[319364481,1710706407936,-155.0,0.00015,2]
[319364482,1710706407956,-150.04,0.00015,2]
[319364483,1710706407974,-744.0,0.00015,2]
[319364484,1710706407995,-550.0,0.00015,3]
[319364485,1710706410531,200.0,0.00014384,2]
[319364486,1710706411409,5002.53230386,0.00014999,2]
[319364487,1710706416563,3099.63085493,0.00014999,2]
[319364488,1710706421029,3000.0,0.00015,2]
[319364489,1710706423480,-10000.0,0.00015053,2]
[319364490,1710706423501,-156.26,0.00015068,2]
[319364491,1710706423522,-592.556228,0.00015068,2]
[319364492,1710706423544,-923.94,0.00015186,2]
[319364493,1710706423565,-1465.79299595,0.000152,2]
[319364494,1710706423585,-398.0,0.0001526,3]
[319364495,1710706423606,-1391.2102795,0.0001528,2]
[319364496,1710706423627,-15468.96398346,0.0001529,2]
[319364497,1710706423647,-11327.93828767,0.00015299,2]
[319364498,1710706423667,-155.24837639,0.00015299,2]
[319364499,1710706423688,-204.7458398,0.00015299,2]
[319364500,1710706423709,-47211.17474737,0.000153,2]
[319364501,1710706423730,-8387.05103449,0.000153,2]
[319364502,1710706423750,-8387.05103449,0.000153,2]
[319364503,1710706423771,-8387.05103449,0.000153,2]
[319364504,1710706423791,-8387.05103449,0.000153,2]
[319364505,1710706423812,-8387.05103449,0.000153,2]
[319364506,1710706423835,-8387.05103449,0.000153,2]
[319364507,1710706423854,-8387.05103449,0.000153,2]
[319364508,1710706423875,-8387.05103449,0.000153,2]
[319364509,1710706423897,-8387.05103449,0.000153,2]
[319364510,1710706423917,-8387.05103449,0.000153,2]
[319364511,1710706423940,-8387.05103449,0.000153,2]
[319364512,1710706423960,-8387.05103449,0.000153,2]
[319364513,1710706423980,-8387.05103449,0.000153,2]
[319364514,1710706424000,-8387.05103449,0.000153,2]
[319364515,1710706424020,-8387.05103449,0.000153,2]
[319364516,1710706424041,-8387.05103449,0.000153,2]
[319364517,1710706424063,-8387.05103449,0.000153,2]
[319364518,1710706424083,-8387.05103449,0.000153,2]
[319364519,1710706424105,-8387.05103449,0.000153,2]
[319364520,1710706424126,-8387.05103449,0.000153,2]
[319364521,1710706424147,-8387.05103449,0.000153,2]
[319364522,1710706424166,-8387.05103449,0.000153,2]
[319364523,1710706424186,-8387.05103449,0.000153,2]
[319364524,1710706424208,-8387.05103449,0.000153,2]
[319364525,1710706424231,-8387.05103449,0.000153,2]
[319364526,1710706424252,-8387.05103449,0.000153,2]
[319364527,1710706424272,-8387.05103449,0.000153,2]
[319364528,1710706424293,-8387.05103449,0.000153,2]
[319364529,1710706424314,-8387.05103449,0.000153,2]
[319364530,1710706424335,-8387.05103449,0.000153,2]
[319364531,1710706424356,-969.07719309,0.000153,2]
[319364532,1710706424377,-969.07719309,0.000153,2]
[319364533,1710706424400,-969.07719309,0.000153,2]
[319364534,1710706424424,-969.07719309,0.000153,2]
[319364535,1710706424444,-969.07719309,0.000153,2]
[319364536,1710706424464,-969.07719309,0.000153,2]
[319364537,1710706424484,-969.07719309,0.000153,2]
[319364538,1710706424504,-969.07719309,0.000153,2]
[319364539,1710706424524,-969.07719309,0.000153,2]
[319364540,1710706424544,-969.07719309,0.000153,2]
[319364541,1710706424572,-969.07719309,0.000153,2]
[319364542,1710706424592,-969.07719309,0.000153,2]
[319364543,1710706424612,-969.07719309,0.000153,2]
[319364544,1710706424633,-969.07719309,0.000153,2]
[319364545,1710706424654,-969.07719309,0.000153,2]
[319364546,1710706424674,-969.07719309,0.000153,2]
[319364547,1710706424694,-969.07719309,0.000153,2]
[319364548,1710706424715,-969.07719309,0.000153,2]
[319364549,1710706424735,-969.07719309,0.000153,2]
[319364550,1710706424755,-969.07719309,0.000153,2]
[319364551,1710706424775,-969.07719309,0.000153,2]
[319364552,1710706424795,-969.07719309,0.000153,2]
[319364553,1710706424816,-969.07719309,0.000153,2]
[319364554,1710706424836,-969.07719309,0.000153,2]
[319364555,1710706424856,-969.07719309,0.000153,2]
[319364556,1710706424877,-969.07719309,0.000153,2]
[319364557,1710706424899,-969.07719309,0.000153,2]
[319364558,1710706424919,-969.07719309,0.000153,2]
[319364559,1710706424939,-969.07719309,0.000153,2]
[319364560,1710706424959,-969.07719309,0.000153,2]
[319364561,1710706424980,-7332.0727491,0.00015389,2]
[319364562,1710706425001,-12199.45679534,0.0001539,2]
[319364563,1710706425022,-4733635.15075522,0.000154,5]
[319364564,1710706425043,-211797.88802002,0.000154,5]
[319364565,1710707082017,704.00556808,0.00011809,2]
[319364566,1710707097171,403.42000905,0.00011809,2]
[319364567,1710707104107,535.24316092,0.00011809,2]
[319364568,1710707106483,261.86121602,0.00011809,2]
[319364569,1710707108230,155.0,0.00011809,2]
[319364570,1710707118334,204.91056307,0.00011809,2]